Workbook

Sheet Contribution Report
A1: EMPLOYERS COMBINED REPORT OF CONTRIBUTIONS FOR
A2: LISTED FUNDS OF LABORERS LOCAL 100 & 397
A3: Fund Office (314) 367-6555
A5: CONTRIBUTIONS REMITTED AFTER THE 15TH OF THE MONTH ARE DELINQUENT. PAYMENTS RECEIVED AFTER THE 20TH OF THE MONTH WILL BE SUBJECT TO A LIQUIDATED DAMAGES ASSESSMENT OF 10 PERCENT (10%) OF TOTAL CONTRIBUTIONS.
A7: Reporting Period: | D7: August, 2020 | F7: =VLOOKUP(D7,'Rate Lookup'!S2:T400,2,FALSE) -> Rates Effective 8/1/2020
D8: Month, Year | H8: ST | I8: TH | J8: DT
F9: Welfare | H9: =VLOOKUP($F$7,'Rate Lookup'!$A$3:$Q$11,3,FALSE) -> 8.45 | I9: =VLOOKUP($F$7,'Rate Lookup'!$A$3:$Q$11,4,FALSE) -> 12.675 | J9: =VLOOKUP($F$7,'Rate Lookup'!$A$3:$Q$11,5,FALSE) -> 16.9
F10: Pension | H10: =VLOOKUP($F$7,'Rate Lookup'!$A$3:$Q$11,7,FALSE) -> 10.9 | I10: =VLOOKUP($F$7,'Rate Lookup'!$A$3:$Q$11,8,FALSE) -> 16.35 | J10: =VLOOKUP($F$7,'Rate Lookup'!$A$3:$Q$11,9,FALSE) -> 21.8
A11: Employer: | F11: Annuity | H11: =VLOOKUP($F$7,'Rate Lookup'!$A$3:$Q$11,11,FALSE) -> 5 | I11: =VLOOKUP($F$7,'Rate Lookup'!$A$3:$Q$11,12,FALSE) -> 7.5 | J11: =VLOOKUP($F$7,'Rate Lookup'!$A$3:$Q$11,13,FALSE) -> 10
F12: Training | H12: =VLOOKUP($F$7,'Rate Lookup'!$A$3:$Q$11,15,FALSE) -> 0.8 | I12: =VLOOKUP($F$7,'Rate Lookup'!$A$3:$Q$11,16,FALSE) -> 0.8 | J12: =VLOOKUP($F$7,'Rate Lookup'!$A$3:$Q$106,17,FALSE) -> 0.8
A13: Contact Name: | F13: Total | H13: =SUM(H9:H12) -> 25.15 | I13: =SUM(I9:I12) -> 37.325 | J13: =SUM(J9:J12) -> 49.5
F14: Monthly Contribution Report Summary
A15: Address:
G16: ST | H16: TH | I16: DT
F17: Hours | G17: =H35 -> 0 | H17: =I35 -> 0 | I17: =J35 -> 0
F18: x Rate | G18: =H13 -> 25.15 | H18: =I13 -> 37.325 | I18: =J13 -> 49.5
A19: Phone Number: | F19: Total | G19: =ROUND(G17*G18,2) -> 0 | H19: =ROUND(H17*H18,2) -> 0 | I19: =ROUND(I17*I18,2) -> 0
I20: Subtotal: | J20: =SUM(G19:I19) -> 0
A21: Email: | I21: Liquidated Damages:
I22: Adjustment:
I23: Total Contribution Due: | J23: =+J22+J21+J20 -> 0
F24: Submit form electronically through:
A25: The undersigned employer, if not already a signator, hereby becomes a signatory party to the currently applicable collective bargaining agreement with Laborers Locals 100 & 397 covering the type and area of work of the below employees and also to each agreement and Declaration of Trust, and amendments, establishing the funds for which payment is made herewith. | G25: https://www.ekonbenefits.com/securesend
F26: Make check payable to:
G27: Employers & Laborers Locals 100 & 397 Funds
F29: Return one hard copy with your remittance to:
G30: Commerce Bank
G31: P.O. Box 802810
B32: Print Name: | G32: Kansas City, MO 64180-2810
B34: Date: | F34: Call Ekon Benefits at (314) 367-6555 with questions
A35: =C11 -> 0 | F35: Total Hours | H35: =SUM(H37:H214) -> 0 | I35: =SUM(I37:I219) -> 0 | J35: =SUM(J37:J219) -> 0 | K35: =COUNTA(A37:C219) -> 0
A36: Name | E36: SSN | G36: Local # 100/397 | H36: Straight Time Hours | I36: Time & One-Half Hours | J36: Double Time Hours

Sheet Rate Lookup
C2: Straight Time | D2: Time & One-Half | E2: Double Time | G2: Straight Time | H2: Time & One-Half | I2: Double Time | K2: Straight Time | L2: Time & One-Half | M2: Double Time | O2: Straight Time | P2: Time & One-Half | Q2: Double Time | S2: January, 2015 | T2: Rates Effective 8/1/2014
A3: Rates Effective 8/1/2014 | B3: Welfare | C3: 7.1 | D3: =ROUND(C3*1.5,2) -> 10.65 | E3: =C3*2 -> 14.2 | F3: Pension | G3: 8.85 | H3: =(G3*1.5) -> 13.275 | I3: =G3*2 -> 17.7 | J3: Annuity | K3: 2.55 | L3: =ROUND(K3*1.5,2) -> 3.83 | M3: =K3*2 -> 5.1 | N3: Training | O3: 0.8 | P3: 0.8 | Q3: 0.8 | S3: February, 2015 | T3: Rates Effective 8/1/2014
A4: Rates Effective 8/1/2015 | B4: Welfare | C4: 7.4 | D4: =ROUND(C4*1.5,2) -> 11.1 | E4: 14.8 | F4: Pension | G4: 9 | H4: 13.5 | I4: 18 | J4: Annuity | K4: 2.8 | L4: =ROUND(K4*1.5,2) -> 4.2 | M4: 5.6 | N4: Training | O4: 0.8 | P4: 0.8 | Q4: 0.8 | S4: March, 2015 | T4: Rates Effective 8/1/2014
A5: Rates Effective 8/1/2016 | B5: Welfare | C5: 8 | D5: =ROUND(C5*1.5,2) -> 12 | E5: 16 | F5: Pension | G5: 9.25 | H5: 13.875 | I5: 18.5 | J5: Annuity | K5: 3 | L5: =ROUND(K5*1.5,2) -> 4.5 | M5: 6 | N5: Training | O5: 0.8 | P5: 0.8 | Q5: 0.8 | S5: April, 2015 | T5: Rates Effective 8/1/2014
A6: Rates Effective 8/1/2017 | B6: Welfare | C6: 8.25 | D6: =(C6*1.5) -> 12.375 | E6: 16.5 | F6: Pension | G6: 9.75 | H6: 14.625 | I6: 19.5 | J6: Annuity | K6: 3.65 | L6: =(K6*1.5) -> 5.475 | M6: 7.3 | N6: Training | O6: 0.8 | P6: 0.8 | Q6: 0.8 | S6: May, 2015 | T6: Rates Effective 8/1/2014
A7: Rates Effective 8/1/2018 | B7: Welfare | C7: 8.25 | D7: =(C7*1.5) -> 12.375 | E7: 16.5 | F7: Pension | G7: 9.9 | H7: 14.85 | I7: 19.8 | J7: Annuity | K7: 4.15 | L7: =(K7*1.5) -> 6.225 | M7: 8.3 | N7: Training | O7: 0.8 | P7: 0.8 | Q7: 0.8 | S7: June, 2015 | T7: Rates Effective 8/1/2014
A8: Rates Effective 8/1/2019 | B8: Welfare | C8: 8.3 | D8: =(C8*1.5) -> 12.45 | E8: 16.6 | F8: Pension | G8: 10.4 | H8: 15.6 | I8: 20.8 | J8: Annuity | K8: 4.5 | L8: =(K8*1.5) -> 6.75 | M8: 9 | N8: Training | O8: 0.8 | P8: 0.8 | Q8: 0.8 | S8: July, 2015 | T8: Rates Effective 8/1/2014
A9: Rates Effective 8/1/2020 | B9: Welfare | C9: 8.45 | D9: =(C9*1.5) -> 12.675 | E9: =C9*2 -> 16.9 | F9: Pension | G9: 10.9 | H9: =(G9*1.5) -> 16.35 | I9: =G9*2 -> 21.8 | J9: Annuity | K9: 5 | L9: =(K9*1.5) -> 7.5 | M9: =K9*2 -> 10 | N9: Training | O9: 0.8 | P9: 0.8 | Q9: 0.8 | S9: August, 2015 | T9: Rates Effective 8/1/2015
S10: September, 2015 | T10: Rates Effective 8/1/2015
S11: October, 2015 | T11: Rates Effective 8/1/2015
S12: November, 2015 | T12: Rates Effective 8/1/2015
S13: December, 2015 | T13: Rates Effective 8/1/2015
S14: January, 2016 | T14: Rates Effective 8/1/2015
S15: February, 2016 | T15: Rates Effective 8/1/2015
S16: March, 2016 | T16: Rates Effective 8/1/2015
S17: April, 2016 | T17: Rates Effective 8/1/2015
S18: May, 2016 | T18: Rates Effective 8/1/2015
S19: June, 2016 | T19: Rates Effective 8/1/2015
S20: July, 2016 | T20: Rates Effective 8/1/2015
S21: August, 2016 | T21: Rates Effective 8/1/2016
S22: September, 2016 | T22: Rates Effective 8/1/2016
S23: October, 2016 | T23: Rates Effective 8/1/2016
S24: November, 2016 | T24: Rates Effective 8/1/2016
S25: December, 2016 | T25: Rates Effective 8/1/2016
S26: January, 2017 | T26: Rates Effective 8/1/2016
S27: February, 2017 | T27: Rates Effective 8/1/2016
S28: March, 2017 | T28: Rates Effective 8/1/2016
S29: April, 2017 | T29: Rates Effective 8/1/2016
S30: May, 2017 | T30: Rates Effective 8/1/2016
S31: June, 2017 | T31: Rates Effective 8/1/2016
S32: July, 2017 | T32: Rates Effective 8/1/2016
S33: August, 2017 | T33: Rates Effective 8/1/2017
S34: September, 2017 | T34: Rates Effective 8/1/2017
S35: October, 2017 | T35: Rates Effective 8/1/2017
S36: November, 2017 | T36: Rates Effective 8/1/2017
S37: December, 2017 | T37: Rates Effective 8/1/2017
S38: January, 2018 | T38: Rates Effective 8/1/2017
S39: February, 2018 | T39: Rates Effective 8/1/2017
S40: March, 2018 | T40: Rates Effective 8/1/2017
S41: April, 2018 | T41: Rates Effective 8/1/2017
S42: May, 2018 | T42: Rates Effective 8/1/2017
S43: June, 2018 | T43: Rates Effective 8/1/2017
S44: July, 2018 | T44: Rates Effective 8/1/2017
S45: August, 2018 | T45: Rates Effective 8/1/2018
S46: September, 2018 | T46: Rates Effective 8/1/2018
S47: October, 2018 | T47: Rates Effective 8/1/2018
S48: November, 2018 | T48: Rates Effective 8/1/2018
S49: December, 2018 | T49: Rates Effective 8/1/2018
S50: January, 2019 | T50: Rates Effective 8/1/2018
S51: February, 2019 | T51: Rates Effective 8/1/2018
S52: March, 2019 | T52: Rates Effective 8/1/2018
S53: April, 2019 | T53: Rates Effective 8/1/2018
S54: May, 2019 | T54: Rates Effective 8/1/2018
S55: June, 2019 | T55: Rates Effective 8/1/2018
S56: July, 2019 | T56: Rates Effective 8/1/2018
S57: August, 2019 | T57: Rates Effective 8/1/2019
S58: September, 2019 | T58: Rates Effective 8/1/2019
S59: October, 2019 | T59: Rates Effective 8/1/2019
S60: November, 2019 | T60: Rates Effective 8/1/2019
S61: December, 2019 | T61: Rates Effective 8/1/2019
S62: January, 2020 | T62: Rates Effective 8/1/2019
S63: February, 2020 | T63: Rates Effective 8/1/2019
S64: March, 2020 | T64: Rates Effective 8/1/2019
S65: April, 2020 | T65: Rates Effective 8/1/2019
S66: May, 2020 | T66: Rates Effective 8/1/2019
S67: June, 2020 | T67: Rates Effective 8/1/2019
S68: July, 2020 | T68: Rates Effective 8/1/2019
S69: August, 2020 | T69: Rates Effective 8/1/2020
S70: September, 2020 | T70: Rates Effective 8/1/2020
S71: October, 2020 | T71: Rates Effective 8/1/2020
S72: November, 2020 | T72: Rates Effective 8/1/2020
S73: December, 2020 | T73: Rates Effective 8/1/2020
S74: January, 2021 | T74: Rates Effective 8/1/2020
S75: February, 2021 | T75: Rates Effective 8/1/2020
S76: March, 2021 | T76: Rates Effective 8/1/2020
S77: April, 2021 | T77: Rates Effective 8/1/2020
S78: May, 2021 | T78: Rates Effective 8/1/2020
S79: June, 2021 | T79: Rates Effective 8/1/2020
S80: July, 2021 | T80: Rates Effective 8/1/2020

Sheet Sheet2
